bitfinex-derivatives/quotes_ETHF0:USTF0_20250604
["timestamp","ask_amount","ask_price","bid_price","bid_amount"]
[1749060438217,1.62115131,2641.5,2641.2,4.563]
[1749060438414,2.12863131,2641.4,2641.2,5.31987]
[1749060438619,1.62119131,2641.3,2641.2,4.563]
[1749060438918,2.88549131,2641.3,2641.2,4.563]
[1749060439518,2.88549131,2641.3,2641.2,5.31989]
[1749060439921,2.88549131,2641.3,2641.2,4.563]
[1749060440622,2.88549131,2641.3,2641.2,0.75689]
[1749060440923,0.75689,2641.2,2641.1,0.76257225]
[1749060441118,2.87972131,2641.2,2641.1,0.00568225]
[1749060441317,2.87972131,2641.2,2641.1,0.76259225]
[1749060441515,2.01539,2641.2,2641.1,0.00568225]
[1749060442023,1.2585,2641.2,2641.1,0.76259225]
[1749060442417,0.06731476,2641.4,2641.3,0.75686]
[1749060442617,0.06731476,2641.4,2641.3,26.00166]
[1749060442818,0.06163251,2641.4,2641.3,26.00166]
[1749060443019,0.06163251,2641.4,2641.3,3.96466]
[1749060443220,0.06163251,2641.4,2641.3,26.00266]
[1749060443425,0.06163251,2641.4,2641.3,3.96466]
[1749060443627,0.06163251,2641.4,2641.3,26.00266]
[1749060444123,0.06163251,2641.4,2641.3,27.28416]
[1749060445217,0.06163251,2641.4,2641.3,26.00266]
[1749060445422,0.06163251,2641.4,2641.3,22.79486]
[1749060445623,0.06163251,2641.4,2641.3,22.79686]
[1749060447421,0.06163251,2641.4,2641.3,27.30466]
[1749060447622,0.06163251,2641.4,2641.3,26.00466]
[1749060448123,0.06163251,2641.4,2641.3,3.96466]
[1749060448327,0.06163251,2641.4,2641.3,24.09686]
[1749060448722,0.06163251,2641.4,2641.3,27.30466]
[1749060448930,2.51e-06,2641.4,2641.3,32.30466]
[1749060450020,2.51e-06,2641.4,2641.3,27.30466]
[1749060450417,3.2078,2642.2,2641.8,0.75671]
[1749060450619,3.2078,2642.6,2641.9,4.456]
[1749060450824,3.20711,2642.5,2642.0,0.75665]
[1749060451024,0.75654,2642.4,2642.1,4.564]
[1749060451230,1.3158,2642.3,2642.2,0.7566]
[1749060452230,2.07237,2642.3,2642.2,0.7566]
[1749060452434,1.3158,2642.3,2642.1,4.564]
[1749060452627,0.662,2642.2,2641.9,0.6047]
[1749060452827,1.261,2642.1,2642.0,0.75666]
[1749060454731,1.32831476,2642.1,2642.0,0.75666]
[1749060455427,1.32831476,2642.1,2641.8,4.564]
[1749060455631,0.75668,2642.0,2641.9,0.75667]
[1749060457233,2.08496476,2642.1,2642.0,0.75666]
[1749060457831,0.75666,2642.0,2641.9,0.75666]
[1749060458026,2.01696,2642.0,2641.9,0.75666]
[1749060458431,0.82395476,2642.1,2642.0,0.75666]
[1749060458631,0.75667,2642.0,2641.9,0.75667]
[1749060458831,2.01697,2642.0,2641.9,0.75667]
[1749060459335,0.06731476,2642.1,2642.0,0.75666]
[1749060459531,0.75667,2642.0,2641.9,0.75666]
[1749060459731,2.01697,2642.0,2641.9,0.75666]
[1749060460128,0.75671,2641.9,2641.8,0.7567]
[1749060460327,0.75671,2641.9,2641.7,4.564]
[1749060460328,1.8681,2641.9,2641.7,4.564]
[1749060460528,2.6248,2641.9,2641.8,0.75671]
[1749060461232,2.6248,2641.9,2641.7,4.564]
[1749060461435,2.6248,2641.9,2641.4,4.564]
[1749060461436,5.09965,2641.8,2641.4,4.564]
[1749060461635,0.75678,2641.6,2641.5,0.75678]
[1749060462539,1.89194,2641.6,2641.1,0.00568225]
[1749060462739,2.73052394,2641.5,2641.1,0.00568225]
[1749060463038,0.86122394,2641.4,2641.1,0.00568225]
[1749060463237,0.75689,2641.2,2641.1,0.76257225]
[1749060463941,41.55688,2641.3,2641.2,0.75689]
[1749060464247,42.41764656,2641.3,2641.2,0.75689]
[1749060465344,41.66076656,2641.3,2641.2,0.75689]
[1749060465641,42.41762656,2641.3,2641.2,0.75689]
[1749060466644,43.72772656,2641.3,2641.2,0.75689]
[1749060467339,0.75689,2641.2,2641.1,0.76258225]
[1749060467547,2.93675656,2641.2,2641.1,0.76258225]
[1749060467843,2.17986656,2641.2,2641.1,0.76258225]
[1749060468240,2.17961377,2641.2,2641.1,0.76258225]
[1749060469644,2.93650377,2641.2,2641.1,0.76258225]
[1749060469839,2.93650377,2641.2,2641.1,0.00568225]
[1749060470848,2.93650377,2641.2,2641.1,0.76259225]
[1749060471040,3.00381853,2641.2,2641.1,0.76259225]
[1749060471340,3.00381853,2641.2,2641.1,0.00568225]
[1749060472345,3.00381853,2641.2,2641.1,0.76259225]
[1749060472646,2.14330476,2641.2,2641.1,0.76259225]
[1749060472845,3.0027023,2641.2,2641.1,0.76259225]
[1749060473046,3.0027023,2641.2,2641.1,0.00568225]
[1749060474645,2.14330476,2641.2,2641.1,0.00568225]
[1749060474844,3.00181461,2641.2,2641.1,0.00568225]
[1749060475247,2.14330476,2641.2,2641.1,0.76259225]
[1749060475643,2.14330476,2641.2,2641.1,0.00568225]
[1749060476240,5.35110476,2641.2,2641.1,0.00568225]
[1749060476844,6.20931712,2641.2,2641.1,0.00568225]
[1749060478850,6.55961712,2641.2,2641.1,0.00568225]
[1749060480640,5.70140476,2641.2,2641.1,0.00568225]
[1749060482652,5.70140476,2641.2,2640.4,4.4556]
[1749060482653,1.89241,2641.0,2640.4,7.7958]
[1749060482848,1.89241,2641.0,2640.3,0.75713]
[1749060482849,0.75714,2640.3,2640.2,0.6406]
[1749060483547,1.35784,2640.4,2640.3,0.75714]
[1749060484453,0.75714,2640.3,2640.2,1.39776]
[1749060485253,0.82445476,2640.3,2640.2,1.39776]
[1749060485756,1.68127898,2640.3,2640.2,1.39776]
[1749060486240,1.68127898,2640.3,2640.2,0.6406]
[1749060486654,1.68127898,2640.3,2640.1,22.07468225]
[1749060486655,0.75717,2640.2,2640.1,22.83386225]
[1749060486946,4.82133915,2640.2,2640.1,0.00568225]
[1749060487153,0.75732,2639.7,2639.6,4.588]
[1749060487347,0.7574,2639.4,2639.3,0.6251]
[1749060488254,0.75743,2639.3,2639.2,4.588]
[1749060488450,0.75746,2639.2,2639.1,0.00568225]
[1749060489659,3.96526,2639.2,2639.1,0.00568225]
[1749060491254,4.81703055,2639.2,2639.1,0.00568225]
[1749060491553,4.81703055,2639.2,2638.7,1.99699]
[1749060491554,0.75757,2638.8,2638.7,0.75759]
[1749060491759,0.75757,2638.8,2638.7,0.7576]
[1749060491950,0.75756,2638.9,2638.8,0.75756]
[1749060492356,0.75756,2638.9,2638.8,1.29250029]
[1749060493456,0.75753,2639.0,2638.9,0.75752]
[1749060493655,2.06503,2639.0,2638.9,0.75752]
[1749060494165,42.86503,2639.0,2638.9,0.75752]
[1749060494564,42.86503,2639.0,2638.9,1.29322149]
[1749060494764,42.86503,2639.0,2638.9,1.29322374]
[1749060495061,40.8,2639.0,2638.9,0.75752]
[1749060495262,0.00568225,2639.1,2639.0,0.75752]
[1749060495562,0.00568225,2639.1,2639.0,1.29319644]
[1749060495868,40.80568225,2639.1,2639.0,0.75752]
[1749060496057,0.00568225,2639.1,2639.0,22.81552]
[1749060496364,0.00568225,2639.1,2639.0,24.11462]
[1749060498068,0.00568225,2639.1,2639.0,5.32452]
[1749060498270,0.75754,2638.9,2638.8,0.53494029]
[1749060498767,3.96534,2638.9,2638.8,0.53494029]
[1749060500667,4.81592906,2638.9,2638.8,0.53494029]
[1749060501059,4.81592273,2638.9,2638.8,0.53494029]
[1749060501865,4.81592273,2638.9,2638.8,1.29251029]
[1749060502166,3.96533,2639.0,2638.9,0.75754]
[1749060502464,0.75754,2638.9,2638.8,1.29250029]
[1749060502670,0.75754,2638.9,2638.8,0.53494029]
[1749060502860,0.75754,2638.9,2638.8,1.29251029]
[1749060503067,1.60924636,2638.9,2638.8,0.53494029]
[1749060504572,2.80674636,2638.9,2638.8,0.53494029]
[1749060505369,2.80811439,2638.9,2638.8,0.53494029]
[1749060508372,0.75777,2638.1,2638.0,0.6543]
[1749060508563,0.75786,2637.8,2637.7,5.9613]
[1749060508771,3.2078,2638.2,2637.7,5.9613]
[1749060508974,0.75783,2638.0,2637.9,0.75779]
[1749060509179,0.75786,2637.9,2637.8,0.75784]
[1749060510063,0.75786,2637.8,2637.7,5.98018]
[1749060510475,0.75785,2637.9,2637.8,0.75785]
[1749060511173,42.2156,2638.1,2638.0,0.7578]
[1749060511379,43.06777354,2638.1,2638.0,0.7578]
[1749060511579,0.75782,2638.0,2637.9,0.75781]
[1749060511771,42.30997354,2638.1,2637.7,5.2223]
[1749060511772,0.75785,2637.9,2637.8,0.75785]
[1749060512777,0.75786,2637.8,2637.7,5.2223]
[1749060512972,0.75786,2637.8,2637.7,5.98018]
[1749060513175,0.75786,2637.8,2637.7,5.2223]
[1749060513372,0.75789,2637.7,2637.6,0.00568225]
[1749060513575,2.81283182,2637.7,2637.6,0.00568225]
[1749060513882,2.81282372,2637.7,2637.6,0.00568225]
[1749060517180,0.75806,2637.1,2637.0,3.2078]
[1749060517384,0.75819,2636.8,2636.7,7.7778]
[1749060517577,4.37505,2637.0,2636.4,4.57484]
[1749060517779,0.75823,2636.5,2636.4,3.8166]
[1749060517974,0.75826,2636.4,2636.3,0.75828]
[1749060518279,0.75826,2636.4,2636.2,4.94623604]
[1749060518280,0.75829,2636.3,2636.2,4.57]
[1749060518480,0.6192,2636.5,2636.2,4.57]
[1749060518683,0.75828,2636.4,2636.3,0.75826]
[1749060519180,1.8278,2636.5,2636.1,6.56381816]
[1749060519181,0.75832,2636.2,2636.1,6.56381816]
[1749060519574,0.75832,2636.2,2636.1,1.23548816]
[1749060519777,0.75832,2636.2,2636.1,0.00378816]
[1749060520271,1.98022,2636.2,2636.1,0.00378816]
[1749060520980,1.98022,2636.2,2636.1,0.54589035]
[1749060521176,1.98022,2636.2,2636.1,0.00378816]
[1749060522086,1.98022,2636.2,2636.1,0.01135907]
[1749060522277,3.2078,2636.3,2636.1,0.01135907]
[1749060522577,0.6192,2636.5,2636.1,0.76970907]
[1749060522885,1.2386,2636.4,2636.1,0.76970907]
[1749060523081,1.2386,2636.4,2636.1,0.01135907]
[1749060523280,0.6192,2636.5,2636.1,0.01135907]
[1749060523584,44.01348225,2636.6,2636.4,0.75826]
[1749060524081,0.75823,2636.5,2636.4,0.75826]
[1749060524382,44.01348225,2636.6,2636.4,0.75826]
[1749060524383,44.77170225,2636.6,2636.4,0.75824]
[1749060524580,0.75823,2636.5,2636.3,0.75827]
[1749060524781,0.75827,2636.4,2636.2,5.8342]
[1749060525085,0.75827,2636.4,2636.2,6.59251]
[1749060525284,41.56391225,2636.6,2636.4,0.75825]
[1749060525481,40.80568225,2636.6,2636.5,0.75823]
[1749060525678,0.00568225,2636.6,2636.5,0.75823]
[1749060526587,0.76389225,2636.6,2636.5,0.75823]
[1749060526986,0.00568225,2636.6,2636.5,0.75823]
[1749060528086,0.00568225,2636.6,2636.3,4.4653]
[1749060528291,0.00568225,2636.6,2636.4,17.509]
[1749060528590,0.00568225,2636.6,2636.5,0.75823]
[1749060528786,0.00568225,2636.6,2636.5,2.00793]
[1749060528990,0.00568225,2636.6,2636.4,17.509]
[1749060528991,0.76391225,2636.6,2636.4,17.509]
[1749060529192,0.00568225,2636.6,2636.5,0.75823]
[1749060529592,0.00568225,2636.6,2636.5,2.00793]
[1749060529983,0.07299701,2636.6,2636.5,2.00793]
[1749060531093,0.00568225,2636.6,2636.5,2.00793]
[1749060531492,0.00568225,2636.6,2636.4,0.75825]
[1749060531692,0.75823,2636.5,2636.4,0.75826]
[1749060531902,0.75829,2636.3,2636.2,1.2632]
[1749060532205,0.75829,2636.3,2636.2,2.02152]
[1749060532499,0.75828,2636.4,2636.3,0.75826]
[1749060532895,3.96605,2636.5,2636.4,0.75826]
[1749060533296,0.75828,2636.4,2636.3,0.75828]
[1749060533799,0.75829,2636.3,2636.2,1.2632]
[1749060533996,0.75832,2636.2,2636.1,4.58335907]
[1749060534191,5.81932,2636.2,2636.1,0.01135907]
[1749060534397,1.89612,2635.8,2635.4,0.75855]
[1749060534691,0.75855,2635.5,2635.4,0.75855]
[1749060534897,41.55851,2635.6,2635.5,0.75852]
[1749060535092,40.8,2635.6,2635.5,0.75852]
[1749060535806,41.55849,2635.6,2635.5,0.75852]
[1749060536000,40.8,2635.6,2635.5,5.33052]
[1749060536701,40.8,2635.6,2635.4,5.33054]
[1749060537003,40.8,2635.6,2635.5,0.75852]
[1749060537193,41.55849,2635.6,2635.5,0.75852]
[1749060537698,40.8,2635.6,2635.5,0.75852]
[1749060538105,0.3656,2635.7,2635.6,0.75849]
[1749060539405,0.3656,2635.7,2635.6,1.31183568]
[1749060539607,0.3656,2635.7,2635.6,0.75849]
[1749060540206,0.3656,2635.7,2635.6,1.31183372]
[1749060540501,0.3656,2635.7,2635.6,1.31183621]
[1749060540801,1.12406,2635.7,2635.6,1.29755484]
[1749060541102,0.75851,2635.6,2635.5,0.75851]
[1749060541313,0.75852,2635.5,2635.4,5.33055]
[1749060541599,5.10406,2635.6,2635.1,0.6566]
[1749060541801,0.7586,2635.3,2635.2,0.7586]
[1749060542107,5.0915,2635.6,2635.2,0.7586]
[1749060542407,0.75856,2635.4,2635.3,0.75856]
[1749060542603,3.77995,2635.6,2635.2,18.27159]
[1749060542906,0.8475059,2635.5,2635.2,4.573]
[1749060543111,0.75857,2635.4,2635.3,0.75857]
[1749060543702,0.75854,2635.5,2635.4,0.75854]
[1749060544003,0.75856,2635.4,2635.3,0.75856]
[1749060544198,0.75856,2635.4,2635.3,1.30205973]
[1749060544399,0.75856,2635.4,2635.3,0.75856]
[1749060544807,0.3656,2635.7,2635.6,0.75849]
[1749060544999,1.97169662,2635.7,2635.6,0.75849]
[1749060545201,0.75852,2635.5,2635.4,18.27253]
[1749060545400,0.75852,2635.5,2635.4,0.75853]
[1749060545602,0.75851,2635.6,2635.5,0.7585]
[1749060545802,0.84772454,2635.6,2635.5,0.7585]
[1749060546005,1.12406,2635.7,2635.6,0.75849]
[1749060546207,0.75854,2635.5,2635.4,22.84652]
[1749060546803,2.04701,2635.6,2635.5,0.75852]
[1749060547003,2.89524255,2635.6,2635.5,0.75852]
[1749060548408,0.84823255,2635.6,2635.5,0.75852]
[1749060548810,0.3656,2635.7,2635.6,0.75849]
[1749060549007,1.97247819,2635.7,2635.6,0.75849]
[1749060549207,0.75852,2635.6,2635.5,0.7585]
[1749060549408,1.60686068,2635.6,2635.5,0.7585]
[1749060550514,0.84834068,2635.6,2635.5,0.7585]
[1749060551113,0.3656,2635.7,2635.6,0.75849]
[1749060554010,0.3656,2635.7,2635.6,1.30487067]
[1749060554201,0.3656,2635.7,2635.6,1.30487015]
[1749060554405,0.3656,2635.7,2635.6,0.75849]
[1749060555610,0.3656,2635.7,2635.4,25.27355]
[1749060555611,0.75852,2635.5,2635.4,4.573]
[1749060555911,3.96632,2635.5,2635.4,4.573]
[1749060556118,0.75858,2635.3,2635.2,4.64031476]
[1749060556319,0.75858,2635.3,2635.2,5.33161]
[1749060556811,0.75858,2635.3,2635.2,4.573]
[1749060557215,0.75858,2635.3,2635.2,5.39892476]
[1749060557617,0.75858,2635.3,2634.6,3.2078]
[1749060557618,0.75875,2634.7,2634.6,3.2078]
[1749060557812,0.75875,2634.7,2634.6,0.75878]
[1749060558313,0.75874,2634.8,2634.7,0.75875]
[1749060558512,0.75874,2634.8,2634.7,5.33175]
[1749060558906,0.00569336,2634.9,2634.8,0.75872]
[1749060559912,0.75878,2634.6,2634.5,4.573]
[1749060560117,0.75878,2634.6,2634.5,5.33181]
[1749060560517,0.75878,2634.6,2634.4,21.3449]
[1749060560518,0.75879,2634.6,2634.4,5.33282]
[1749060560719,0.75879,2634.6,2634.5,0.75881]
[1749060560917,0.75876,2634.7,2634.6,0.75878]
[1749060561107,2.17467059,2634.7,2634.6,0.75878]
[1749060561312,2.17467059,2634.7,2634.6,0.82609476]
[1749060562314,2.17467059,2634.7,2634.6,1.3669968]
[1749060562621,2.17467059,2634.7,2634.6,0.82609476]
[1749060564112,0.00569336,2634.9,2634.6,1.96426476]
[1749060564312,0.85315533,2634.8,2634.7,0.75875]
[1749060564512,0.76440336,2634.9,2634.8,0.75872]
[1749060564513,0.00569336,2634.9,2634.8,0.75872]
[1749060564814,0.85802439,2634.9,2634.8,0.75872]
[1749060565014,0.00569336,2634.9,2634.8,0.75872]
[1749060565220,0.00569336,2634.9,2634.8,5.33272]
[1749060567417,0.75874,2634.8,2634.6,0.06731476]
[1749060567612,0.75874,2634.8,2634.7,5.33274]
[1749060567807,0.75875,2634.7,2634.6,0.06731476]
[1749060568117,2.8356375,2634.7,2634.6,0.06731476]
[1749060568413,2.8356209,2634.7,2634.6,0.06731476]
[1749060568817,2.8356209,2634.7,2634.6,0.82609476]
[1749060570019,2.0768709,2634.7,2634.6,1.36647783]
[1749060570315,0.8521709,2634.7,2634.6,1.36647783]
[1749060570530,0.75872,2634.8,2634.7,0.75875]
[1749060570817,0.75875,2634.7,2634.6,1.36646783]
[1749060571012,2.92484786,2634.7,2634.6,1.36646783]
[1749060571221,0.85179786,2634.7,2634.6,1.36646783]
[1749060571413,0.85191077,2634.8,2634.6,0.60769783]
[1749060571614,0.85191077,2634.8,2634.7,0.75875]
[1749060572014,0.00569336,2634.9,2634.8,0.75872]
[1749060572216,0.00569336,2634.9,2634.8,1.35832]
[1749060573313,0.00569336,2634.9,2634.8,7.57822]
[1749060573813,0.3656,2635.7,2635.6,0.75849]
[1749060574017,0.3656,2635.7,2635.6,5.33349]
[1749060574018,1.21770135,2635.7,2635.6,5.33349]
[1749060574314,3.11388135,2635.7,2634.9,4.575]
[1749060574509,3.2078,2635.5,2635.1,0.75861]
[1749060574717,3.2078,2635.5,2635.0,0.00569336]
[1749060574913,0.85241767,2635.4,2635.3,0.75858]
[1749060575122,0.00569336,2635.6,2635.5,0.75852]
[1749060575311,0.00569336,2635.6,2635.5,3.96632]
[1749060575514,0.00569336,2635.6,2635.5,8.96632]
[1749060575923,0.00569336,2635.6,2635.5,10.18312]
[1749060577121,0.00569336,2635.6,2635.5,10.72489188]
[1749060577322,0.00569336,2635.6,2635.5,10.18312]
[1749060578420,44.7661,2636.3,2636.2,0.75832]
[1749060578624,0.75832,2636.2,2636.1,5.33233]
[1749060578822,1.61085594,2636.2,2636.1,5.33233]
[1749060579223,1.61085594,2636.2,2636.1,4.574]
[1749060580126,0.85253594,2636.2,2636.1,5.33235]
[1749060580333,1.21983594,2636.2,2636.1,4.574]
[1749060580519,1.97815594,2636.2,2636.1,4.574]
[1749060580718,1.97815594,2636.2,2636.1,22.115]
[1749060580925,3.30495594,2636.2,2636.1,22.115]
[1749060581416,2.54671898,2636.2,2635.9,0.6353]
[1749060581719,0.75838,2636.0,2635.9,18.9327]
[1749060581914,1.6941,2636.2,2635.9,22.7473]
[1749060582119,0.75836,2636.1,2636.0,0.75836]
[1749060582618,2.05336,2636.1,2635.9,23.50568]
[1749060582827,2.05336,2636.1,2636.0,0.75838]
[1749060583017,0.75838,2636.0,2635.9,1.39369]
[1749060583219,0.75838,2636.0,2635.9,23.50769]
[1749060583528,1.295,2636.1,2635.9,22.7493]
[1749060583729,2.05337,2636.1,2636.0,0.75838]
[1749060584521,1.12564,2636.2,2636.1,0.75835]
[1749060584823,0.75836,2636.1,2636.0,0.75836]
[1749060585020,0.3673,2636.2,2636.1,0.75835]
[1749060586225,0.28295135,2636.2,2636.1,0.75835]
[1749060586425,0.00569336,2636.4,2636.3,0.75829]
[1749060586632,0.00569336,2636.4,2636.3,5.34029]
[1749060587029,0.00569336,2636.4,2636.3,5.96909]
[1749060587722,0.00569336,2636.4,2636.3,9.17689]
[1749060589127,0.00569336,2636.4,2636.3,26.70889]
[1749060589632,0.00569336,2636.4,2636.3,26.70589]
[1749060590326,0.00569336,2636.4,2636.3,23.49809]
[1749060591631,0.00569336,2636.4,2636.3,26.70589]
[1749060596729,0.00569336,2636.4,2636.3,14.17589]
[1749060596936,0.00569336,2636.4,2636.3,31.68789]
[1749060597136,0.00569336,2636.4,2636.3,26.68689]
[1749060597636,0.00569336,2636.4,2636.3,4.59489]
[1749060597934,0.76395336,2636.4,2636.3,3.96609]
[1749060598130,0.76395336,2636.4,2636.3,26.05709]
[1749060598334,0.00569336,2636.4,2636.3,26.05709]
[1749060598733,0.76395336,2636.4,2636.3,3.96609]
[1749060598931,0.76395336,2636.4,2636.1,0.7392]
[1749060598932,0.75832,2636.2,2636.1,0.7392]
[1749060599132,0.75832,2636.2,2636.1,6.07754]
[1749060599437,0.75832,2636.2,2636.1,4.58]
[1749060599630,2.06882,2636.2,2636.1,4.58]
[1749060600239,2.06882,2636.2,2636.1,5.33835]
[1749060600640,1.3105,2636.2,2636.1,5.33835]
[1749060601236,2.06882,2636.2,2636.1,5.33835]
[1749060601547,1.3105,2636.2,2636.1,5.33835]
[1749060602440,0.616,2636.3,2636.2,0.75832]
[1749060602942,1.47180025,2636.3,2636.2,0.75832]
[1749060603346,1.4717993,2636.3,2636.2,0.75832]
[1749060603546,0.8557993,2636.3,2636.2,0.75832]
[1749060604351,0.75832,2636.2,2636.1,3.2078]
[1749060604541,2.0850993,2636.2,2636.1,25.2988]
[1749060604955,0.8557993,2636.2,2636.1,26.05715]
[1749060607244,0.75829,2636.3,2636.2,0.75831]
[1749060608645,1.61524086,2636.3,2636.2,0.75831]
[1749060608845,0.75829,2636.3,2636.2,0.75831]
[1749060609147,0.76397336,2636.4,2636.3,0.75829]
[1749060609452,0.00569336,2636.4,2636.3,0.75829]
[1749060609647,0.86274435,2636.4,2636.3,0.75829]
[1749060609846,0.86274435,2636.4,2636.2,18.2693]
[1749060610055,0.85705099,2636.3,2636.2,18.2693]
[1749060610351,0.76397336,2636.4,2636.3,0.75829]
[1749060610654,0.75829,2636.3,2636.2,18.2693]
[1749060610951,0.75829,2636.3,2636.1,4.58]
[1749060610952,0.75832,2636.2,2636.1,4.58]
[1749060611252,3.58433066,2636.2,2636.1,4.58]
[1749060613152,3.58433066,2636.2,2636.1,5.33835]
[1749060613647,0.75841,2635.9,2635.8,3.2078]
[1749060613950,0.75841,2635.9,2635.8,4.572]
[1749060614253,1.61633832,2635.9,2635.8,4.572]
[1749060614647,0.85787826,2635.9,2635.7,0.75845]
[1749060614848,0.75841,2635.9,2635.8,4.572]
[1749060615154,1.61623081,2636.0,2635.9,0.75841]
[1749060615355,1.61623348,2636.0,2635.9,0.75841]
[1749060616055,0.75841,2635.9,2635.8,5.33041]
[1749060616256,1.61624348,2635.9,2635.8,5.33041]
[1749060616457,0.85783348,2635.9,2635.8,5.33041]
[1749060617150,0.85784816,2636.0,2635.9,0.75841]
[1749060617754,1.61622816,2636.0,2635.9,0.75841]
[1749060619159,1.6163498,2636.0,2635.9,0.75841]
[1749060619748,0.8579698,2636.0,2635.9,0.75841]
[1749060620057,0.8579698,2636.0,2635.9,0.82572476]
[1749060620853,1.41137,2636.1,2636.0,0.75838]
[1749060621057,2.26888825,2636.1,2636.0,0.75838]
[1749060622462,0.85751825,2636.1,2636.0,0.75838]
[1749060623356,0.75833,2636.2,2636.1,0.75835]
[1749060623662,1.615467,2636.2,2636.1,0.75835]
[1749060624254,0.75837,2636.1,2636.0,18.27036]
[1749060624465,1.615507,2636.1,2636.0,18.27036]
[1749060625964,1.615507,2636.1,2636.0,0.75836]
[1749060626164,1.615507,2636.1,2636.0,5.33036]
[1749060627865,1.61636927,2636.1,2636.0,5.33036]
[1749060629463,1.61636927,2636.1,2636.0,4.572]
[1749060629666,0.75841,2635.9,2635.8,3.2078]
[1749060629865,0.85799927,2635.9,2635.8,5.33043]
[1749060630059,1.61642927,2635.9,2635.8,5.33043]
[1749060630258,2.84272927,2635.9,2635.8,5.33043]
[1749060630469,2.84270927,2635.9,2635.8,5.33043]
[1749060630764,2.08429927,2635.9,2635.8,5.33043]
[1749060630965,2.84270927,2635.9,2635.8,5.33043]
[1749060631169,2.08429927,2635.9,2635.8,5.33043]
[1749060631561,0.85799927,2635.9,2635.8,5.33043]
[1749060631869,0.858443,2635.9,2635.8,5.33043]
[1749060632173,0.75837,2636.1,2636.0,0.75838]
[1749060632570,1.61682823,2636.1,2636.0,0.75838]
[1749060632866,2.90542823,2636.1,2636.0,0.75838]
[1749060633065,2.14705823,2636.1,2636.0,0.75838]
[1749060633470,0.85845823,2636.1,2636.0,0.75838]
[1749060633771,1.37751,2636.3,2635.9,2.53339]
[1749060633772,1.3775,2636.3,2635.9,2.53339]
[1749060633969,0.85902732,2636.2,2635.9,2.53339]
[1749060634170,1.37751,2636.3,2636.2,0.75832]
[1749060634472,3.48232262,2636.3,2636.2,4.572]
[1749060634673,3.48232262,2636.3,2636.2,5.33032]
[1749060636372,3.48232262,2636.3,2636.2,4.572]
[1749060636576,3.48263316,2636.3,2636.2,4.572]
[1749060636978,2.72432316,2636.3,2635.7,1.89613]
[1749060637178,0.75838,2636.1,2636.0,0.75835]
[1749060637370,1.61780316,2636.1,2636.0,0.75835]
[1749060638370,1.61780316,2636.1,2636.0,0.82566476]
[1749060638675,0.85942316,2636.1,2636.0,0.82566476]
[1749060638864,0.75835,2636.1,2636.0,0.82566476]
[1749060639070,1.61777316,2636.1,2636.0,0.82566476]
[1749060640970,1.61908439,2636.1,2636.0,0.82566476]
[1749060641975,1.61908439,2636.1,2636.0,22.90866476]
[1749060644473,0.86073439,2636.1,2636.0,22.90866476]
[1749060644773,1.61908439,2636.1,2636.0,22.90866476]
[1749060645175,2.84428439,2636.1,2636.0,22.90866476]
[1749060645479,2.84490955,2636.1,2636.0,22.90866476]
[1749060647381,2.84490955,2636.1,2636.0,4.63931476]
[1749060647581,6.05270955,2636.1,2636.0,5.39769476]
[1749060647775,6.05270955,2636.1,2636.0,22.90869476]
[1749060649275,6.05270955,2636.1,2636.0,22.15031476]
[1749060649679,5.19135,2636.1,2636.0,4.63931476]
[1749060649979,6.05242144,2636.1,2636.0,22.14831476]
[1749060650678,6.05242144,2636.1,2636.0,22.90669476]
[1749060652283,6.05242144,2636.1,2636.0,0.82569476]
[1749060652480,6.05242144,2636.1,2636.0,22.14831476]
[1749060653282,6.05242144,2636.1,2636.0,22.90669476]
[1749060654184,5.19135,2636.1,2636.0,22.90669476]
[1749060654482,6.05191275,2636.1,2636.0,22.90669476]
[1749060654886,4.82671275,2636.1,2636.0,22.90669476]
[1749060658783,4.82698294,2636.1,2636.0,5.39669476]
[1749060659087,4.82698294,2636.1,2636.0,22.90569476]
[1749060660278,1.61918294,2636.1,2636.0,22.90569476]
[1749060661586,0.75835,2636.1,2636.0,22.90569476]
[1749060661782,1.61949726,2636.1,2636.0,22.90569476]
[1749060662887,2.84799726,2636.1,2636.0,22.90569476]
[1749060663485,0.86113739,2636.1,2636.0,22.90569476]
[1749060663680,7.39e-06,2636.1,2636.0,27.90569476]
[1749060663883,0.2877,2636.2,2636.1,0.75835]
[1749060664185,4.57749,2637.0,2636.9,0.75812]
[1749060664494,3.2078,2637.4,2636.9,22.079]
[1749060664781,1.8948,2637.6,2636.9,22.079]
[1749060664782,0.602,2637.6,2637.0,2.51541]
[1749060664985,0.75797,2637.5,2637.4,0.75797]
[1749060665186,0.75798,2637.4,2637.3,4.571]
[1749060665687,0.75798,2637.4,2637.3,5.329]
[1749060665888,0.75806,2637.1,2637.0,1.38398336]
[1749060666084,0.75806,2637.1,2637.0,23.46098336]
[1749060666285,0.75806,2637.1,2637.0,22.70289336]
[1749060666494,0.75806,2637.1,2637.0,23.46098336]
[1749060667085,0.75806,2637.1,2637.0,22.70289336]
[1749060667279,0.75806,2637.1,2637.0,0.00569336]
[1749060667589,0.75826,2636.4,2636.3,38.241]
[1749060667789,0.75826,2636.4,2636.3,60.318]
[1749060667987,0.75826,2636.4,2636.3,42.812]
[1749060668192,3.2078,2636.7,2636.5,0.7582]
[1749060668386,0.7582,2636.6,2636.5,0.7582]
[1749060669684,3.966,2636.7,2636.5,18.2622]
[1749060669883,5.1746,2636.7,2636.5,18.2622]
[1749060670485,0.7582,2636.6,2636.5,17.504]
[1749060670687,1.9668,2636.6,2636.5,18.26223]
[1749060670884,1.9668,2636.6,2636.4,17.504]
[1749060671092,0.75823,2636.5,2636.4,18.26226]
[1749060671691,0.75823,2636.5,2636.4,0.75826]
[1749060671886,0.75826,2636.4,2636.3,38.24669336]
[1749060672097,0.75826,2636.4,2636.3,0.00569336]
[1749060672986,1.37826,2636.4,2636.3,0.00569336]
[1749060673690,1.37826,2636.4,2636.3,0.76398336]
[1749060673891,1.37826,2636.4,2636.3,0.00569336]